fUSD/lending_fUSD_20250225
["ID","MTS","AMOUNT","RATE_DAILY","PERIOD"]
[354388107,1740468748459,-500.0,0.00056712,2]
[354388108,1740468748470,-500.0,0.00056712,120]
[354388109,1740468748480,-500.0,0.00056712,120]
[354388110,1740468748490,-2864.64,0.00056712,120]
[354388111,1740468748500,-500.0,0.00056712,120]
[354388112,1740468748510,-500.0,0.00056712,120]
[354388113,1740468748521,-1803.36,0.00056712,120]
[354388114,1740468748530,-500.0,0.00056712,120]
[354388115,1740468748541,-1506.59,0.00056712,120]
[354388116,1740468748552,-1568.57,0.00056712,120]
[354388117,1740468748562,-980.59,0.00056712,120]
[354388118,1740468748572,-1792.49,0.00056712,120]
[354388119,1740468748583,-1620.72,0.00056712,120]
[354388120,1740468748594,-500.0,0.00056712,120]
[354388121,1740468748604,-500.0,0.00056712,120]
[354388122,1740468748614,-849.91,0.00056712,120]
[354388123,1740468748623,-659.49,0.00056712,120]
[354388124,1740468748634,-500.0,0.00056712,120]
[354388125,1740468748645,-3340.49,0.00056712,120]
[354388126,1740468748655,-150.979023,0.00056712,120]
[354388127,1740468748664,-668.51,0.00056712,120]
[354388128,1740468748673,-500.0,0.00056712,120]
[354388129,1740468748683,-680.52,0.00056712,120]
[354388130,1740468748693,-500.0,0.00056712,120]
[354388131,1740468748703,-1680.11,0.00056712,120]
[354388132,1740468748713,-500.0,0.00056712,120]
[354388133,1740468748723,-500.0,0.00056712,120]
[354388134,1740468748733,-2006.24,0.00056712,120]
[354388135,1740468748742,-2470.99,0.00056712,120]
[354388136,1740468748753,-1713.5,0.00056712,120]
[354388137,1740468748763,-10000.0,0.0005678,30]
[354388138,1740468748773,-5000.0,0.0005698,30]
[354388139,1740468748783,-563.24,0.00056986,120]
[354388140,1740468748794,-580.45,0.00056986,120]
[354388141,1740468748805,-167.182594,0.00056986,120]
[354388142,1740468748815,-406.014874,0.00056986,120]
[354388143,1740468748827,-160.399577,0.00056986,120]
[354388144,1740468748836,-554.357489,0.00056986,120]
[354388145,1740468748846,-500.0,0.00056986,120]
[354388146,1740468748857,-500.0,0.00056986,120]
[354388147,1740468748868,-500.0,0.00056986,120]
[354388148,1740468748879,-500.0,0.00056986,120]
[354388149,1740468748889,-500.0,0.00056986,120]
[354388150,1740468748899,-521.68,0.00056986,120]
[354388151,1740468748911,-516.77324043,0.00056986,120]
[354388152,1740468748922,-500.0,0.00056986,120]
[354388153,1740468748934,-699.56,0.00056986,120]
[354388154,1740468748945,-500.0,0.00056986,120]
[354388155,1740468748956,-500.0,0.00056986,120]
[354388156,1740468748967,-500.0,0.00056986,120]
[354388157,1740468748978,-514.1378285,0.00056986,120]
[354388158,1740468748988,-500.0,0.00056986,120]
[354388159,1740468748999,-500.0,0.00056986,120]
[354388160,1740468749010,-500.0,0.00056986,120]
[354388161,1740468749021,-687.3,0.00056986,120]
[354388162,1740468749031,-500.0,0.00056986,120]
[354388163,1740468749041,-364.76403215,0.00056986,120]
[354388164,1740468749052,-1291.42,0.00056986,120]
[354388165,1740468749063,-500.0,0.00056986,120]
[354388166,1740468749075,-500.0,0.00056986,120]
[354388167,1740468749092,-500.0,0.00056986,120]
[354388168,1740468749103,-500.0,0.00056986,120]
[354388169,1740468749114,-500.0,0.00056986,120]
[354388170,1740468749127,-850.45,0.00056986,120]
[354388171,1740468749139,-500.0,0.00056986,120]
[354388172,1740468749150,-500.0,0.00056986,120]
[354388173,1740468749160,-510.04471389,0.00056986,120]
[354388174,1740468749171,-508.18958505,0.00056986,120]
[354388175,1740468749181,-836.92,0.00056986,120]
[354388176,1740468749191,-509.56155015,0.00056986,120]
[354388177,1740468749202,-457.33611446,0.00056986,120]
[354388178,1740468749214,-925.53,0.00056986,120]
[354388179,1740468749226,-500.0,0.00056986,120]
[354388180,1740468749238,-525.48,0.00056986,120]
[354388181,1740468749251,-500.0,0.00056986,120]
[354388182,1740468749262,-1017.7,0.00056986,120]
[354388183,1740468749274,-620.4,0.00056986,120]
[354388184,1740468749285,-500.0,0.00056986,120]
[354388185,1740468749297,-637.38,0.00056986,120]
[354388186,1740468749309,-500.0,0.00056986,120]
[354388187,1740468749320,-500.0,0.00056986,120]
[354388188,1740468749335,-822.2,0.00056986,120]
[354388189,1740468749347,-500.0,0.00056986,120]
[354388190,1740468749358,-500.0,0.00056986,120]
[354388191,1740468749369,-500.0,0.00056986,120]
[354388192,1740468749380,-500.0,0.00056986,120]
[354388193,1740468749391,-500.0,0.00056986,120]
[354388194,1740468749402,-509.78823652,0.00056986,120]
[354388195,1740468749414,-543.16,0.00056986,120]
[354388196,1740468749424,-500.0,0.00056986,120]
[354388197,1740468749435,-1571.07,0.00056986,120]
[354388198,1740468749446,-848.24,0.00056986,120]
[354388199,1740468749457,-943.15,0.00056986,120]
[354388200,1740468749468,-500.0,0.00056986,120]
[354388201,1740468749478,-1168.63,0.00056986,120]
[354388202,1740468749489,-540.79210777,0.00056986,120]
[354388203,1740468749501,-500.0,0.00056986,120]
[354388204,1740468749513,-517.51,0.00056986,120]
[354388205,1740468749524,-951.32,0.00056986,120]
[354388206,1740468749536,-2000.0,0.00056986,30]
[354388207,1740468749547,-318.94183137,0.00056986,120]
[354388208,1740468749559,-500.0,0.00056986,120]
[354388209,1740468749570,-500.0,0.00056986,120]
[354388210,1740468749585,-500.0,0.00056986,120]
[354388211,1740468749597,-500.0,0.00056986,120]
[354388212,1740468749608,-500.0,0.00056986,120]
[354388213,1740468749618,-500.0,0.00056986,120]
[354388214,1740468749629,-777.26,0.00056986,120]
[354388215,1740468749640,-500.0,0.00056986,120]
[354388216,1740468749653,-500.0,0.00056986,120]
[354388217,1740468749665,-560.94,0.00056986,120]
[354388218,1740468749676,-500.0,0.00056986,120]
[354388219,1740468749686,-500.0,0.00056986,120]
[354388220,1740468749695,-500.0,0.00056986,120]
[354388221,1740468749703,-500.0,0.00056986,120]
[354388222,1740468749714,-404.43,0.00056986,7]
[354388223,1740468749724,-500.0,0.00056986,120]
[354388224,1740468749733,-1128.12,0.00056986,120]
[354388225,1740468749744,-500.0,0.00056986,120]
[354388226,1740468749755,-514.80938532,0.00056986,120]
[354388227,1740468749765,-500.0,0.00056986,120]
[354388228,1740468749775,-610.79,0.00056986,120]
[354388229,1740468749785,-630.83,0.00056986,120]
[354388230,1740468749795,-500.0,0.00056986,120]
[354388231,1740468749805,-500.0,0.00056986,120]
[354388232,1740468749815,-500.0,0.00056986,120]
[354388233,1740468749827,-500.0,0.00056986,120]
[354388234,1740468749837,-500.0,0.00056986,120]
[354388235,1740468749846,-214.62305672,0.00056986,120]
[354388236,1740468749856,-641.8,0.00056986,120]
[354388237,1740468749866,-500.0,0.00056986,120]
[354388238,1740468749876,-164.27642889,0.00056986,120]
[354388239,1740468749886,-1736.97,0.00056986,120]
[354388240,1740468749895,-500.0,0.00056986,120]
[354388241,1740468749905,-500.0,0.00056986,120]
[354388242,1740468749915,-551.92,0.00056986,120]
[354388243,1740468749926,-500.0,0.00056986,120]
[354388244,1740468749936,-829.97,0.00056986,120]
[354388245,1740468749946,-1884.67,0.00056986,120]
[354388246,1740468749956,-1959.02,0.00056986,120]
[354388247,1740468749966,-687.65,0.00056986,120]
[354388248,1740468749975,-500.0,0.00056986,120]
[354388249,1740468749985,-1049.16,0.00056986,120]
[354388250,1740468749995,-500.0,0.00056986,120]
[354388251,1740468750006,-500.0,0.00056986,120]
[354388252,1740468750016,-382.36060643,0.00056986,120]
[354388253,1740468750026,-500.0,0.00056986,120]
[354388254,1740468750036,-500.0,0.00056986,120]
[354388255,1740468750046,-500.0,0.00056986,120]
[354388256,1740468750056,-500.0,0.00056986,120]
[354388257,1740468750067,-910.65,0.00056986,120]
[354388258,1740468750079,-500.0,0.00056986,120]
[354388259,1740468750095,-500.0,0.00056986,120]
[354388260,1740468750105,-557.79860999,0.00056986,120]
[354388261,1740468750117,-500.0,0.00056986,120]
[354388262,1740468750128,-500.0,0.00056986,120]
[354388263,1740468750141,-1220.8,0.00056986,120]
[354388264,1740468750152,-500.0,0.00056986,120]
[354388265,1740468750163,-500.0,0.00056986,120]
[354388266,1740468750175,-500.0,0.00056986,120]
[354388267,1740468750187,-500.0,0.00056986,120]
[354388268,1740468750199,-156.23594182,0.00056986,120]
[354388269,1740468750210,-230.54653578,0.00056986,120]
[354388270,1740468750221,-500.0,0.00056986,120]
[354388271,1740468750231,-522.31,0.00056986,120]
[354388272,1740468750242,-1188.98,0.00056986,120]
[354388273,1740468750254,-526.28,0.00056986,120]
[354388274,1740468750265,-1040.34,0.00056986,120]
[354388275,1740468750276,-500.0,0.00056986,120]
[354388276,1740468750287,-724.24,0.00056986,120]
[354388277,1740468750297,-500.0,0.00056986,120]
[354388278,1740468750308,-500.0,0.00056986,120]
[354388279,1740468750320,-1422.51,0.00056986,120]
[354388280,1740468750337,-1615.65,0.00056986,120]
[354388281,1740468750349,-500.0,0.00056986,120]
[354388282,1740468750362,-992.42,0.00056986,20]
[354388283,1740468750374,-901.44,0.00056986,120]
[354388284,1740468750386,-816.88,0.00056986,120]
[354388285,1740468750398,-500.0,0.00056986,120]
[354388286,1740468750409,-500.0,0.00056986,120]
[354388287,1740468750421,-500.0,0.00056986,120]
[354388288,1740468750433,-671.92,0.00056986,120]
[354388289,1740468750444,-955.28,0.00056986,120]
[354388290,1740468750455,-500.0,0.00056986,120]
[354388291,1740468750466,-1525.72,0.00056986,120]
[354388292,1740468750477,-500.0,0.00056986,40]
[354388293,1740468750488,-500.0,0.00056986,120]
[354388294,1740468750500,-1437.76,0.00056986,120]
[354388295,1740468750773,-500.0,0.00056986,120]
[354388296,1740468750785,-1132.0,0.00056986,120]
[354388297,1740468750796,-1768.38,0.00056986,120]
[354388298,1740468750807,-872.14,0.00056986,120]
[354388299,1740468750819,-1405.94,0.00056986,120]
[354388300,1740468750834,-500.0,0.00056986,120]
[354388301,1740468750845,-500.0,0.00056986,120]
[354388302,1740468750855,-500.0,0.00056986,120]
[354388303,1740468750865,-745.77,0.00056986,120]
[354388304,1740468750877,-1000.0,0.00056986,120]
[354388305,1740468750888,-500.0,0.00056986,120]
[354388306,1740468750899,-820.25,0.00056986,120]
[354388307,1740468750910,-500.0,0.00056986,120]
[354388308,1740468750921,-778.18,0.00056986,120]
[354388309,1740468750931,-500.0,0.00056986,120]
[354388310,1740468750942,-618.03,0.00056986,120]
[354388311,1740468750952,-538.57,0.00056986,120]
[354388312,1740468750962,-813.45,0.00056986,120]
[354388313,1740468750973,-659.87,0.00056986,120]
[354388314,1740468750984,-542.24,0.00056986,120]
[354388315,1740468750995,-1379.17,0.00056986,120]
[354388316,1740468751006,-444.76366446,0.00056986,120]
[354388317,1740468751017,-1790.29,0.00056986,120]
[354388318,1740468751028,-500.0,0.00056986,120]
[354388319,1740468751039,-817.76,0.00056986,120]
[354388320,1740468751049,-500.0,0.00056986,120]
[354388321,1740468751060,-1159.57,0.00056986,120]
[354388322,1740468751070,-500.0,0.00056986,120]
[354388323,1740468751085,-500.0,0.00056986,120]
[354388324,1740468751096,-500.0,0.00056986,120]
[354388325,1740468751107,-500.0,0.00056986,120]
[354388326,1740468751117,-672.91,0.00056986,120]
[354388327,1740468751128,-1035.42,0.00056986,120]
[354388328,1740468751139,-1067.5,0.00056986,120]
[354388329,1740468751148,-500.0,0.00056986,120]
[354388330,1740468751160,-911.5,0.00056986,120]
[354388331,1740468751169,-576.02111459,0.00056986,120]
[354388332,1740468751179,-782.71,0.00056986,120]
[354388333,1740468751190,-332.30364105,0.00056986,120]
[354388334,1740468751200,-692.81,0.00056986,120]
[354388335,1740468751210,-500.0,0.00056986,120]
[354388336,1740468751220,-1417.28,0.00056986,120]
[354388337,1740468751230,-4827.95,0.00056986,120]
[354388338,1740468751242,-907.1,0.00056986,120]
[354388339,1740468751255,-1025.54,0.00056986,120]
[354388340,1740468751266,-972.52,0.00056986,120]
[354388341,1740468751279,-500.0,0.00056986,120]
[354388342,1740468751290,-1147.6,0.00056986,120]
[354388343,1740468751301,-954.71,0.00056986,120]
[354388344,1740468751311,-508.53,0.00056986,120]
[354388345,1740468751322,-500.0,0.00056986,120]
[354388346,1740468751336,-500.0,0.00056986,120]
[354388347,1740468751346,-1526.64,0.00056986,120]
[354388348,1740468751357,-927.58,0.00056986,120]
[354388349,1740468751367,-500.0,0.00056986,120]
[354388350,1740468751377,-500.0,0.00056986,120]
[354388351,1740468751387,-1242.39,0.00056986,120]
[354388352,1740468751397,-871.61,0.00056986,120]
[354388353,1740468751407,-1600.52,0.00056986,120]
[354388354,1740468751417,-549.43,0.00056986,120]
[354388355,1740468751426,-1142.54,0.00056986,120]
[354388356,1740468751436,-500.0,0.00056986,120]
[354388357,1740468751446,-552.98,0.00056986,120]
[354388358,1740468751456,-1401.97,0.00056986,120]
[354388359,1740468751465,-1245.93,0.00056986,120]
[354388360,1740468751475,-500.0,0.00056986,120]
[354388361,1740468751485,-1200.36,0.00056986,120]
[354388362,1740468751495,-500.0,0.00056986,120]
[354388363,1740468751505,-500.0,0.00056986,30]
[354388364,1740468751515,-504.05,0.00056986,120]
[354388365,1740468751526,-971.46,0.00056986,120]
[354388366,1740468751536,-500.0,0.00056986,120]
[354388367,1740468751551,-500.0,0.00056986,120]
[354388368,1740468751562,-500.0,0.00056986,120]
[354388369,1740468751573,-500.0,0.00056986,120]
[354388370,1740468751587,-599.74,0.00056986,120]
[354388371,1740468751597,-500.0,0.00056986,120]
[354388372,1740468751608,-515.75,0.00056986,120]
[354388373,1740468751619,-1301.53,0.00056986,120]
[354388374,1740468751630,-500.0,0.00056986,120]
[354388375,1740468751645,-500.0,0.00056986,120]
[354388376,1740468751656,-500.0,0.00056986,120]
[354388377,1740468751666,-1377.93,0.00056986,120]
[354388378,1740468751677,-519.39,0.00056986,120]
[354388379,1740468751689,-623.61,0.00056986,120]
[354388380,1740468751699,-500.0,0.00056986,120]
[354388381,1740468751710,-1303.38,0.00056986,120]
[354388382,1740468751721,-500.0,0.00056986,120]
[354388383,1740468751732,-500.0,0.00056986,120]
[354388384,1740468751743,-500.0,0.00056986,120]
[354388385,1740468751754,-585.47,0.00056986,120]
[354388386,1740468751765,-552.97,0.00056986,120]
[354388387,1740468751776,-1349.4,0.00056986,120]
[354388388,1740468751793,-500.0,0.00056986,120]
[354388389,1740468751804,-741.84,0.00056986,120]
[354388390,1740468751816,-500.0,0.00056986,120]
[354388391,1740468751831,-700.58,0.00056986,2]
[354388392,1740468751843,-2351.09,0.00056986,2]
[354388393,1740468751853,-500.0,0.00056986,120]
[354388394,1740468751865,-994.98,0.00056986,30]
[354388395,1740468751875,-500.0,0.00056986,120]
[354388396,1740468751886,-500.0,0.00056986,120]
[354388397,1740468751897,-715.33,0.00056986,120]
[354388398,1740468751907,-1439.89,0.00056986,120]
[354388399,1740468751917,-500.0,0.00056986,120]
[354388400,1740468751927,-943.25,0.00056986,120]
[354388401,1740468751937,-657.52,0.00056986,120]
[354388402,1740468751947,-500.0,0.00056986,120]
[354388403,1740468751957,-251.55652977,0.00056986,120]
[354388404,1740468751967,-523.79,0.00056986,120]
[354388405,1740468751978,-500.0,0.00056986,120]
[354388406,1740468751988,-1664.27,0.00056986,120]
[354388407,1740468751998,-943.64,0.00056986,120]
[354388408,1740468752008,-516.4,0.00056986,120]
[354388409,1740468752019,-712.11,0.00056986,120]
[354388410,1740468752029,-500.0,0.00056986,120]
[354388411,1740468752039,-500.0,0.00056986,120]
[354388412,1740468752049,-500.0,0.00056986,120]
[354388413,1740468752059,-888.35,0.00056986,120]
[354388414,1740468752069,-500.0,0.00056986,120]
[354388415,1740468752080,-522.22,0.00056986,120]
[354388416,1740468752095,-1032.87,0.00056986,120]
[354388417,1740468752106,-500.0,0.00056986,120]
[354388418,1740468752116,-1438.9,0.00056986,120]
[354388419,1740468752128,-500.0,0.00056986,120]
[354388420,1740468752138,-570.8,0.00056986,120]
[354388421,1740468752148,-815.66,0.00056986,120]
[354388422,1740468752163,-500.0,0.00056986,120]
[354388423,1740468752174,-500.0,0.00056986,120]
[354388424,1740468752185,-1275.45,0.00056986,120]
[354388425,1740468752195,-3980.64,0.00056986,120]
[354388426,1740468752204,-500.0,0.00056986,120]
[354388427,1740468752215,-500.0,0.00056986,120]
[354388428,1740468752225,-500.0,0.00056986,120]
[354388429,1740468752235,-1206.75,0.00056986,120]
[354388430,1740468752246,-500.0,0.00056986,120]
[354388431,1740468752257,-1130.49,0.00056986,120]
[354388432,1740468752268,-1535.83,0.00056986,120]
[354388433,1740468752278,-1768.01,0.00056986,120]
[354388434,1740468752289,-500.0,0.00056986,120]
[354388435,1740468752300,-664.86,0.00056986,120]
[354388436,1740468752310,-1200.87,0.00056986,120]
[354388437,1740468752322,-696.61,0.00056986,120]
[354388438,1740468752336,-1522.97,0.00056986,120]
[354388439,1740468752346,-500.0,0.00056986,120]
[354388440,1740468752355,-500.0,0.00056986,120]
[354388441,1740468752366,-500.0,0.00056986,120]
[354388442,1740468752376,-1393.05,0.00056986,120]
[354388443,1740468752387,-894.01,0.00056986,120]
[354388444,1740468752398,-1886.6,0.00056986,120]
[354388445,1740468752409,-986.38,0.00056986,120]
[354388446,1740468752420,-1184.76,0.00056986,120]
[354388447,1740468752432,-500.0,0.00056986,120]
[354388448,1740468752442,-1319.72,0.00056986,120]
[354388449,1740468752453,-2022.2,0.00056986,120]
[354388450,1740468752464,-1099.29,0.00056986,120]
[354388451,1740468752475,-1444.43,0.00056986,120]
[354388452,1740468752486,-508.18502228,0.00056986,120]
[354388453,1740468752496,-512.51,0.00056986,120]
[354388454,1740468752507,-517.98,0.00056986,120]
[354388455,1740468752518,-1030.18,0.00056986,120]
[354388456,1740468752529,-500.0,0.00056986,120]
[354388457,1740468752539,-971.18,0.00056986,120]
[354388458,1740468752550,-1142.3,0.00056986,120]
[354388459,1740468752561,-1194.04,0.00056986,120]
[354388460,1740468752572,-533.71538371,0.00056986,120]
[354388461,1740468752590,-1748.82,0.00056986,120]
[354388462,1740468752601,-679.54,0.00056986,120]
[354388463,1740468752613,-1309.17,0.00056986,120]
[354388464,1740468752624,-500.0,0.00056986,120]
[354388465,1740468752636,-587.74,0.00056986,120]
[354388466,1740468752647,-778.7,0.00056986,120]
[354388467,1740468752658,-733.26,0.00056986,120]
[354388468,1740468752669,-730.67,0.00056986,120]
[354388469,1740468752680,-598.78,0.00056986,120]
[354388470,1740468752690,-1016.76,0.00056986,120]
[354388471,1740468752700,-343.780273,0.00056986,120]
[354388472,1740468752710,-789.0,0.00056986,120]
[354388473,1740468752720,-500.0,0.00056986,120]
[354388474,1740468752731,-500.0,0.00056986,120]
[354388475,1740468752741,-1145.46,0.00056986,120]
[354388476,1740468752750,-4362.55,0.00056986,120]
[354388477,1740468752760,-631.53,0.00056986,120]
[354388478,1740468752770,-500.0,0.00056986,120]
[354388479,1740468752781,-3017.39,0.00056986,120]
[354388480,1740468752791,-969.91,0.00056986,120]
[354388481,1740468752802,-759.14,0.00056986,120]
[354388482,1740468752814,-500.0,0.00056986,120]
[354388483,1740468752825,-616.28931011,0.00056986,120]
[354388484,1740468752840,-2220.86,0.00056986,120]
[354388485,1740468752851,-318.751745,0.00056986,120]
[354388486,1740468752862,-1553.03,0.00056986,120]
[354388487,1740468752874,-722.9,0.00056986,120]
[354388488,1740468752884,-500.0,0.00056986,120]
[354388489,1740468752896,-856.37,0.00056986,120]
[354388490,1740468752906,-910.26,0.00056986,120]
[354388491,1740468752918,-500.0,0.00056986,120]
[354388492,1740468752930,-887.73,0.00056986,120]
[354388493,1740468752940,-1830.19,0.00056986,120]
[354388494,1740468752952,-567.72375207,0.00056986,120]
[354388495,1740468752963,-1715.31,0.00056986,120]
[354388496,1740468752974,-500.0,0.00056986,120]
[354388497,1740468752985,-500.0,0.00056986,120]
[354388498,1740468752995,-500.0,0.00056986,120]
[354388499,1740468753005,-686.54,0.00056986,120]
[354388500,1740468753018,-500.0,0.00056986,120]
[354388501,1740468753028,-2424.1,0.00056986,120]
[354388502,1740468753039,-500.0,0.00056986,120]
[354388503,1740468753049,-500.0,0.00056986,120]
[354388504,1740468753059,-1521.55,0.00056986,120]
[354388505,1740468753070,-2919.48,0.00056986,120]
[354388506,1740468753086,-823.47,0.00056986,120]
[354388507,1740468753100,-1738.48,0.00056986,120]
[354388508,1740468753110,-915.34,0.00056986,120]
[354388509,1740468753121,-2711.99,0.00056986,120]
[354388510,1740468753134,-500.0,0.00056986,120]
[354388511,1740468753146,-576.99,0.00056986,120]
[354388512,1740468753157,-500.0,0.00056986,120]
[354388513,1740468753168,-2110.84,0.00056986,120]
[354388514,1740468753179,-637.74,0.00056986,120]
[354388515,1740468753189,-2315.41,0.00056986,120]
[354388516,1740468753200,-3875.43,0.00056986,7]
[354388517,1740468753210,-500.0,0.00056986,120]
[354388518,1740468753221,-1035.71,0.00056986,120]
[354388519,1740468753232,-434.19712561,0.00056986,120]
[354388520,1740468753242,-500.0,0.00056986,60]
[354388521,1740468753252,-750.25,0.00056986,120]
[354388522,1740468753263,-500.0,0.00056986,120]
[354388523,1740468753272,-500.0,0.00056986,120]
[354388524,1740468753281,-3264.88,0.00056986,120]
[354388525,1740468753291,-2938.93,0.00056986,120]
[354388526,1740468753300,-496.58564848,0.00056986,120]
[354388527,1740468753309,-1210.86,0.00056986,120]
[354388528,1740468753319,-534.95,0.00056986,120]
[354388529,1740468753331,-703.65,0.00056986,120]
[354388530,1740468753341,-2458.44,0.00056986,120]
[354388531,1740468753350,-1556.62,0.00056986,120]
[354388532,1740468753361,-500.0,0.00056986,120]
[354388533,1740468753468,-2761.69,0.00056986,120]
[354388534,1740468753480,-585.51,0.00056986,120]
[354388535,1740468753491,-2649.21,0.00056986,120]
[354388536,1740468753501,-1981.89,0.00056986,120]
[354388537,1740468753512,-689.83,0.00056986,120]
[354388538,1740468753522,-2553.02,0.00056986,120]
[354388539,1740468753533,-3211.4,0.00056986,120]
[354388540,1740468753543,-1493.71,0.00056986,120]
[354388541,1740468753554,-1352.07,0.00056986,120]
[354388542,1740468753564,-2909.1,0.00056986,120]
[354388543,1740468753574,-1667.75,0.00056986,120]
[354388544,1740468753587,-4349.64,0.00056986,120]
[354388545,1740468753598,-1519.71,0.00056986,120]
[354388546,1740468753609,-752.34,0.00056986,120]
[354388547,1740468753621,-864.91,0.00056986,120]
[354388548,1740468753632,-1290.66,0.00056986,120]
[354388549,1740468753643,-500.0,0.00056986,120]
[354388550,1740468753655,-910.81,0.00056986,5]
[354388551,1740468753665,-2901.27,0.00056986,120]
[354388552,1740468753676,-1857.67,0.00056986,120]
[354388553,1740468753687,-500.0,0.00056986,120]
[354388554,1740468753697,-2986.93,0.00056986,120]
[354388555,1740468753707,-2864.49,0.00056986,120]
[354388556,1740468753717,-500.0,0.00056986,120]
[354388557,1740468753727,-2305.88,0.00056986,120]
[354388558,1740468753737,-2121.17,0.00056986,120]
[354388559,1740468753746,-500.0,0.00056986,120]
[354388560,1740468753756,-2477.45,0.00056986,120]
[354388561,1740468753765,-1752.42,0.00056986,120]
[354388562,1740468753775,-538.64,0.00056986,120]
[354388563,1740468753784,-1452.1,0.00056986,120]
[354388564,1740468753794,-1822.96,0.00056986,120]
[354388565,1740468753803,-1851.24,0.00056986,120]
[354388566,1740468753813,-500.0,0.00056986,120]
[354388567,1740468753822,-607.87,0.00056986,120]
[354388568,1740468753834,-361.12293357,0.00056986,120]
[354388569,1740468753843,-2265.65,0.00056986,120]
[354388570,1740468753853,-3192.11,0.00056986,120]
[354388571,1740468753864,-3707.86,0.00056986,120]
[354388572,1740468753874,-1530.35,0.00056986,120]
[354388573,1740468753884,-1400.72,0.00056986,120]
[354388574,1740468753895,-813.46,0.00056986,120]
[354388575,1740468753906,-1028.29,0.00056986,120]
[354388576,1740468753917,-1470.7,0.00056986,120]
[354388577,1740468753929,-640.5,0.00056986,120]
[354388578,1740468753940,-500.0,0.00056986,120]
[354388579,1740468753951,-2337.12,0.00056986,120]
[354388580,1740468753961,-3975.46,0.00056986,120]
[354388581,1740468753972,-3333.6,0.00056986,120]
[354388582,1740468753982,-5873.49,0.00056986,120]
[354388583,1740468753993,-1036.75,0.00056986,120]
[354388584,1740468754004,-500.0,0.00056986,120]
[354388585,1740468754014,-613.18,0.00056986,120]
[354388586,1740468754025,-562.09,0.00056986,120]
[354388587,1740468754036,-2745.61,0.00056986,120]
[354388588,1740468754046,-707.46,0.00056986,120]
[354388589,1740468754056,-4540.04,0.00056986,120]
[354388590,1740468754067,-600.49777485,0.00056986,120]
[354388591,1740468754080,-1113.18,0.00056986,120]
[354388592,1740468754095,-2703.16,0.00056986,120]
[354388593,1740468754106,-3052.04,0.00056986,120]
[354388594,1740468754116,-522.41,0.00056986,120]
[354388595,1740468754127,-500.0,0.00056986,120]
[354388596,1740468754138,-551.64,0.00056986,120]
[354388597,1740468754148,-500.0,0.00056986,120]
[354388598,1740468754159,-1552.51,0.00056986,120]
[354388599,1740468754170,-1000.0,0.00056986,60]
[354388600,1740468754181,-2971.45,0.00056986,90]
[354388601,1740468754192,-1701.44,0.00056986,120]
[354388602,1740468754203,-553.8,0.00056986,120]
[354388603,1740468754214,-1833.0,0.00056986,120]
[354388604,1740468754225,-2581.17,0.00056986,120]
[354388605,1740468754236,-500.0,0.00056986,120]
[354388606,1740468754246,-3435.08,0.00056986,120]